lending/lending_fUSD_20260330
["ID","MTS","AMOUNT","RATE_DAILY","PERIOD"]
[419072709,1774833046294,-1712.93078312,0.00015599,2]
[419072711,1774833046303,-209.40437684,0.00015599,2]
[419072713,1774833046313,-200.0,0.00015599,2]
[419072715,1774833046322,-891.61887448,0.00015599,2]
[419072716,1774833046331,-1600.0,0.000156,5]
[419072718,1774833046340,-700.0,0.000156,5]
[419072720,1774833046350,-1035.0,0.00015621,2]
[419072722,1774833046359,-153.0,0.00015649,3]
[419072724,1774833046368,-9035.0,0.00015686,2]
[419072726,1774833046378,-1775.0,0.00015696,2]
[419072727,1774833046387,-1600.0,0.000157,5]
[419072729,1774833046397,-2149.0,0.000157,2]
[419072731,1774833046406,-3633.96,0.000157,2]
[419072733,1774833046415,-700.0,0.000157,5]
[419072735,1774833046424,-3135.01,0.000157,2]
[419072737,1774833046433,-3747.67,0.000157,2]
[419072739,1774833046442,-1000.0,0.00015727,2]
[419072741,1774833046452,-150.0,0.00015735,2]
[419072743,1774833046461,-1000.0,0.00015739,2]
[419072745,1774833046470,-1000.0,0.00015739,2]
[419072747,1774833046479,-1000.0,0.00015748,2]
[419072748,1774833046488,-1000.0,0.00015748,2]
[419072749,1774833046498,-150.0,0.00015749,2]
[419072750,1774833046508,-204.0,0.00015753,2]
[419072751,1774833046518,-339.0,0.00015753,2]
[419072752,1774833046527,-1702.59,0.00015753,2]
[419072753,1774833046537,-2258.0,0.00015756,2]
[419072754,1774833046546,-168.0,0.00015761,2]
[419072755,1774833046555,-1000.0,0.00015764,2]
[419072756,1774833046565,-1000.0,0.00015765,2]
[419072757,1774833046575,-1000.0,0.00015766,2]
[419072758,1774833046584,-150.0,0.00015767,2]
[419072759,1774833046594,-371.288842,0.00015773,2]
[419072760,1774833046603,-1000.0,0.00015773,2]
[419072761,1774833046612,-1775.0,0.00015776,2]
[419072762,1774833046622,-1000.0,0.00015779,2]
[419072764,1774833046631,-152.0,0.00015781,11]
[419072766,1774833046640,-480.0,0.00015781,2]
[419072768,1774833046651,-683.0,0.00015781,2]
[419072770,1774833046660,-1000.0,0.00015783,2]
[419072772,1774833046670,-1000.0,0.00015783,2]
[419072774,1774833046679,-1000.0,0.00015784,2]
[419072776,1774833046688,-150.0,0.00015788,2]
[419072778,1774833046698,-150.0,0.0001579,2]
[419072780,1774833046707,-1000.0,0.00015793,2]
[419072782,1774833046716,-1000.0,0.00015793,2]
[419072784,1774833046725,-1000.0,0.00015794,2]
[419072786,1774833046734,-1000.0,0.00015794,2]
[419072788,1774833046744,-1115.0,0.00015797,2]
[419072790,1774833046753,-1000.0,0.00015798,2]
[419072792,1774833046763,-1600.0,0.000158,5]
[419072794,1774833046772,-15555.58,0.000158,2]
[419072796,1774833046781,-700.0,0.000158,5]
[419072798,1774833046790,-1000.0,0.00015801,2]
[419072800,1774833046800,-1570.0,0.00015802,2]
[419072802,1774833046810,-300.0,0.00015802,2]
[419072804,1774833046819,-2257.22666049,0.00015807,2]
[419072806,1774833046828,-150.0,0.00015821,2]
[419072808,1774833046838,-150.0,0.00015825,2]
[419072810,1774833046847,-1000.0,0.00015833,2]
[419072825,1774833046983,-150.0,0.00015838,2]
[419072827,1774833046992,-500.0,0.00015839,2]
[419072829,1774833047001,-500.0,0.00015839,2]
[419072831,1774833047011,-128040.00023938,0.0001584,2]
[419072833,1774833047020,-1000.0,0.00015849,2]
[419072835,1774833047030,-1000.0,0.0001585,2]
[419072837,1774833047039,-150.0,0.00015852,2]
[419072839,1774833047048,-300.0,0.00015856,2]
[419072841,1774833047057,-150.0,0.00015857,2]
[419072843,1774833047066,-1000.0,0.00015862,2]
[419072845,1774833047075,-1000.0,0.00015865,2]
[419072847,1774833047085,-1000.0,0.00015866,2]
[419072849,1774833047093,-1000.0,0.00015867,2]
[419072851,1774833047104,-1000.0,0.00015868,2]
[419072853,1774833047113,-500.0,0.00015872,2]
[419072855,1774833047122,-200.0,0.00015872,2]
[419072856,1774833047131,-150.0,0.00015878,2]
[419072857,1774833047140,-150.0,0.0001588,2]
[419072858,1774833047149,-1000.0,0.00015882,2]
[419072859,1774833047159,-1000.0,0.00015883,2]
[419072860,1774833047168,-1000.0,0.00015885,2]
[419072861,1774833047177,-1000.0,0.00015887,2]
[419072862,1774833047186,-1000.0,0.00015887,2]
[419072863,1774833047195,-2000.0,0.0001589,2]
[419072864,1774833047205,-1361.13017709,0.0001589,2]
[419072865,1774833047215,-2500.0,0.0001589,2]
[419072866,1774833047223,-1000.0,0.00015892,2]
[419072867,1774833047233,-150.0,0.00015897,2]
[419072868,1774833047242,-10000.0,0.000159,2]
[419072869,1774833047251,-502.62762616,0.000159,2]
[419072870,1774833047260,-5620.41475057,0.000159,2]
[419072871,1774833047271,-3774.88240895,0.000159,2]
[419072872,1774833047280,-404.10204459,0.000159,2]
[419072873,1774833047289,-2200.0,0.000159,5]
[419072874,1774833047298,-1000.0,0.000159,2]
[419072875,1774833047308,-2718.86754478,0.000159,2]
[419072876,1774833047317,-39055.60631164,0.000159,2]
[419072877,1774833047327,-1416.99036534,0.000159,2]
[419072878,1774833047336,-1544.0,0.000159,5]
[419072879,1774833047345,-11496.42161442,0.000159,2]
[419072880,1774833047355,-300.0,0.00015902,2]
[419072881,1774833047364,-1000.0,0.00015902,2]
[419072882,1774833047373,-300.0,0.00015903,2]
[419072883,1774833047382,-1000.0,0.00015904,2]
[419072884,1774833047393,-1000.0,0.00015906,2]
[419072885,1774833047402,-150.95,0.00015908,2]
[419072886,1774833047411,-1000.0,0.00015908,2]
[419072887,1774833047420,-1000.0,0.00015909,2]
[419072888,1774833047429,-350.0,0.00015912,2]
[419072889,1774833047439,-1000.0,0.00015914,2]
[419072890,1774833047448,-1000.0,0.00015917,2]
[419072891,1774833047458,-1000.0,0.00015919,2]
[419072892,1774833047467,-1000.0,0.00015919,2]
[419072893,1774833047477,-202.4,0.00015919,2]
[419072894,1774833047486,-350.0,0.00015923,2]
[419072895,1774833047495,-150.95,0.00015925,2]
[419072896,1774833047504,-1000.0,0.00015926,2]
[419072897,1774833047514,-1000.0,0.00015927,2]
[419072898,1774833047524,-1000.0,0.00015928,2]
[419072899,1774833047534,-1775.0,0.00015933,2]
[419072900,1774833047543,-1000.0,0.00015935,2]
[419072901,1774833047553,-150.0,0.00015936,2]
[419072902,1774833047562,-150.0,0.00015936,2]
[419072903,1774833047571,-1000.0,0.00015936,2]
[419072904,1774833047581,-1000.0,0.00015939,2]
[419072905,1774833047590,-2000.0,0.00015939,2]
[419072906,1774833047599,-2000.0,0.00015939,2]
[419072907,1774833047609,-2000.0,0.00015939,2]
[419072908,1774833047618,-2000.0,0.00015939,2]
[419072909,1774833047627,-2000.0,0.00015939,2]
[419072910,1774833047636,-2000.0,0.00015939,2]
[419072911,1774833047646,-2000.0,0.00015939,2]
[419072912,1774833047655,-2000.0,0.00015939,2]
[419072913,1774833047664,-2000.0,0.00015939,2]
[419072914,1774833047674,-2000.0,0.00015939,2]
[419072915,1774833047684,-1000.0,0.00015941,2]
[419072916,1774833047693,-214.70167578,0.00015941,2]
[419072917,1774833047703,-1000.0,0.00015942,2]
[419072918,1774833047712,-1000.0,0.00015946,2]
[419072919,1774833047722,-1000.0,0.00015951,2]
[419072920,1774833047731,-1000.0,0.00015952,2]
[419072921,1774833047741,-1000.0,0.00015956,2]
[419072922,1774833047750,-158.14,0.00015959,2]
[419072923,1774833047759,-1000.0,0.00015961,2]
[419072924,1774833047768,-1000.0,0.00015963,2]
[419072925,1774833047779,-1000.0,0.0001597,2]
[419072926,1774833047789,-500.0,0.00015972,2]
[419072927,1774833047798,-436.63495801,0.00015972,2]
[419072928,1774833047807,-500.0,0.00015972,2]
[419072929,1774833047817,-2000.0,0.00015972,2]
[419072930,1774833047826,-347.0,0.00015973,2]
[419072931,1774833047835,-1000.0,0.00015973,2]
[419072932,1774833047844,-150.0,0.00015978,2]
[419072933,1774833047853,-1000.0,0.00015978,2]
[419072934,1774833047862,-158.14,0.0001598,2]
[419072935,1774833047872,-1000.0,0.00015985,2]
[419072936,1774833047881,-1000.0,0.00015988,2]
[419072937,1774833047890,-1000.0,0.00015989,2]
[419072938,1774833047899,-288.88562624,0.00015992,2]
[419072939,1774833047909,-1000.0,0.00015996,2]
[419072940,1774833047918,-175.557621,0.00015997,2]
[419072941,1774833047927,-151.0,0.00015997,2]
[419072942,1774833047937,-249.371621,0.00015997,2]
[419072943,1774833047946,-151.0,0.00015997,2]
[419072944,1774833047955,-168.76883123,0.00015998,2]
[419072945,1774833047964,-1523.0,0.00015998,2]
[419072946,1774833047974,-1523.0,0.00015998,2]
[419072947,1774833047983,-1523.0,0.00015998,2]
[419072948,1774833047992,-160.0,0.00015998,2]
[419072949,1774833048002,-1523.0,0.00015998,2]
[419072950,1774833048011,-1523.0,0.00015998,2]
[419072951,1774833048022,-1523.0,0.00015998,2]
[419072952,1774833048031,-156.0,0.00015998,2]
[419072953,1774833048040,-1523.0,0.00015998,2]
[419072954,1774833048049,-161.0,0.00015998,2]
[419072955,1774833048058,-161.0,0.00015998,2]
[419072956,1774833048067,-205.54151621,0.00015998,2]
[419072957,1774833048077,-156.0,0.00015998,2]
[419072958,1774833048087,-1523.0,0.00015998,2]
[419072959,1774833048096,-156.0,0.00015998,2]
[419072960,1774833048106,-153.0,0.00015998,2]
[419072961,1774833048116,-1523.0,0.00015998,2]
[419072962,1774833048125,-153.0,0.00015998,2]
[419072963,1774833048135,-654.92171009,0.00015998,2]
[419072964,1774833048146,-242.8527761,0.00015998,2]
[419072965,1774833048157,-1523.0,0.00015998,2]
[419072966,1774833048167,-1523.0,0.00015998,2]
[419072967,1774833048176,-1523.0,0.00015998,2]
[419072968,1774833048185,-1269.49993133,0.00015998,2]
[419072969,1774833048196,-666.0,0.00015999,2]
[419072970,1774833048207,-666.0,0.00015999,2]
[419072971,1774833048216,-666.0,0.00015999,2]
[419072972,1774833048224,-666.0,0.00015999,2]
[419072973,1774833048233,-500.0,0.00015999,2]
[419072974,1774833048243,-500.0,0.00015999,2]
[419072975,1774833048254,-454.01718216,0.00015999,2]
[419072976,1774833048264,-177.293,0.00015999,2]
[419072977,1774833048273,-1061.37,0.00015999,2]
[419072978,1774833048284,-1061.37,0.00015999,2]
[419072979,1774833048293,-1061.37,0.00015999,2]
[419072980,1774833048305,-1061.37,0.00015999,2]
[419072981,1774833048314,-1061.39970255,0.00015999,2]
[419072982,1774833048325,-150.0,0.00015999,2]
[419072983,1774833048335,-2271194.23955203,0.00016,2]
[419072984,1774833048407,-169057.01635938,0.00016,2]
[419072985,1774833048419,-2358.73356464,0.00016,2]
[419072986,1774833048429,-1656.25721209,0.00016,2]
[419072987,1774833048907,-1064.0,8.977e-05,2]
[419072988,1774833048916,-35162.24638302,0.00016,2]
[419072989,1774833048930,-661.24,0.00016,2]
[419072990,1774833048955,-253.84809997,0.00016,2]
[419072991,1774833048966,-664.23,0.00016,2]
[419072992,1774833048977,-648.92043422,0.00016,2]
[419072993,1774833048991,-1602.67657182,0.00016,2]
[419072994,1774833050921,-410.16,8.995e-05,2]
[419072995,1774833050942,-650.01129907,8.995e-05,2]
[419072996,1774833050967,-89.82870093,8.995e-05,2]
[419072997,1774833050976,-249.0,9.013e-05,2]
[419072998,1774833050985,-1665.67129912,0.00016,2]
[419072999,1774833051022,-1178.49759291,0.00015887,2]
[419073000,1774833177744,263.66,8.542e-05,2]
[419073001,1774833226740,759.17,8.249e-05,2]
[419073002,1774833279759,150.0,0.00019853,120]
[419073003,1774833844779,-241.0,8.676e-05,2]
[419073004,1774833844815,-1600.0,8.676e-05,2]
[419073005,1774833844847,-250.0,8.741e-05,2]
[419073006,1774833844879,-500.0,8.806e-05,2]
[419073007,1774833844912,-451.09,8.816e-05,2]
[419073008,1774833844944,-560.37,8.832e-05,2]
[419073009,1774833844975,-1500.0,8.834e-05,2]
[419073010,1774833845007,-291.6148333,8.924e-05,2]
[419073011,1774833845041,-914.14,9.031e-05,2]
[419073012,1774833845076,-1200.0,9.062e-05,2]
[419073013,1774833845111,-265.69,9.1e-05,2]
[419073014,1774833845146,-300.0,9.147e-05,2]
[419073015,1774833845182,-300.0,9.147e-05,2]
[419073016,1774833845213,-2626.0951667,9.148e-05,2]
[419073017,1774834021661,500.0,0.0002,120]
[419073018,1774834030759,500.0,0.0002,120]
[419073019,1774834032284,500.0,0.0002,120]
[419073020,1774834033637,500.0,0.0002,120]
[419073021,1774834034677,500.0,0.0002,120]
[419073022,1774834035799,500.0,0.0002,120]
[419073023,1774834037065,500.0,0.0002,120]
[419073024,1774834038657,500.0,0.0002,120]
[419073025,1774834040086,500.0,0.0002,120]
[419073026,1774834042139,500.0,0.0002,120]
[419073027,1774834042672,500.0,0.0002,120]
[419073028,1774834043884,500.0,0.0002,120]
[419073029,1774834045167,500.0,0.0002,120]
[419073030,1774834046413,500.0,0.0002,120]
[419073031,1774834047656,500.0,0.0002,120]
[419073032,1774834048980,500.0,0.0002,120]
[419073033,1774834050540,500.0,0.0002,120]
[419073034,1774834051880,500.0,0.0002,120]
[419073035,1774834054128,500.0,0.0002,120]
[419073036,1774834054230,1200.0,8.8e-05,3]
[419073037,1774834054547,500.0,0.0002,120]
[419073038,1774834056516,2500.0,8.9e-05,3]
[419073039,1774834058131,3700.0,9e-05,3]
[419073040,1774834090525,665.05,7.951e-05,2]
[419073041,1774834098947,500.0,8.63e-05,2]
[419073042,1774834100659,500.0,8.63e-05,2]
[419073043,1774834102180,500.0,8.63e-05,2]
[419073044,1774834102846,500.0,8.63e-05,2]
[419073045,1774834104049,469.34,8.63e-05,2]
[419073046,1774834104071,30.66,8.63e-05,2]
[419073047,1774834105203,500.0,8.63e-05,2]
[419073048,1774834106279,500.0,8.63e-05,2]
[419073049,1774834107310,500.0,8.63e-05,2]
[419073050,1774834108550,500.0,8.63e-05,2]
[419073051,1774834109637,500.0,8.63e-05,2]
[419073052,1774834116371,500.0,8.63e-05,2]
[419073053,1774834119661,500.0,8.63e-05,2]
[419073054,1774834148106,6469.35,8.48e-05,2]
[419073055,1774834148130,10000.01,8.48e-05,2]
[419073056,1774834148160,4888.41289893,8.48e-05,2]
[419073057,1774834148189,466.584817,8.48e-05,2]
[419073058,1774834148214,722.8955016,8.48e-05,2]
[419073059,1774834148250,76096.32678247,8.48e-05,2]
[419073060,1774834153609,635.07,7.073e-05,2]
[419073061,1774834205840,157.0,7.073e-05,3]
[419073062,1774834208284,157.0,8.068e-05,3]
[419073064,1774834232579,-241.0,8.68e-05,2]
[419073065,1774834232589,-500.0,8.68e-05,2]
[419073066,1774834232598,-561.97,8.867e-05,2]
[419073067,1774834232607,-940.0,8.987e-05,2]
[419073068,1774834232616,-157.0,9.063e-05,3]
[419073069,1774834232626,-300.0,9.147e-05,2]
[419073070,1774834232635,-739.10846847,9.147e-05,2]
[419073071,1774834232677,-460.89153153,9.147e-05,2]
[419073072,1774834232686,-228.26983051,9.148e-05,2]
[419073073,1774834232697,-21.73016949,9.148e-05,2]
[419073074,1774834232706,-300.0,9.148e-05,2]
[419073075,1774834232715,-2500.0,9.148e-05,2]
[419073076,1774834232724,-1230.94,9.227e-05,2]
[419073077,1774834232733,-3967.071,9.247e-05,2]
[419073078,1774834232742,-208.629,9.247e-05,2]
[419073079,1774834232752,-500.0,9.263e-05,2]
[419073080,1774834232763,-500.0,9.263e-05,2]
[419073081,1774834232773,-204.54226178,9.263e-05,2]
[419073082,1774834232785,-295.45773822,9.263e-05,2]
[419073083,1774834232795,-235.12020723,9.263e-05,2]
[419073084,1774834232828,-264.87979277,9.263e-05,2]
[419073085,1774834232837,-500.70925877,9.263e-05,2]
[419073086,1774834232846,-150.0,9.282e-05,2]
[419073087,1774834232855,-1002.09629327,9.283e-05,2]
[419073088,1774834232864,-500.0,9.283e-05,2]
[419073089,1774834232873,-500.0,9.283e-05,2]
[419073090,1774834232882,-195.72129167,9.283e-05,2]
[419073091,1774834232891,-500.0,9.283e-05,2]
[419073092,1774834232900,-387.28731063,9.283e-05,2]
[419073093,1774834232909,-10000.0,9.284e-05,2]
[419073094,1774834232918,-38827.51927954,9.284e-05,2]
[419073095,1774834232929,-12431.11226186,9.284e-05,2]
[419073096,1774834232940,-1015.16,9.284e-05,2]
[419073097,1774834232951,-255.75980045,9.284e-05,2]
[419073101,1774834240343,-505.62742896,9.283e-05,2]
[419073102,1774834240353,-458.8055114,9.283e-05,2]
[419073103,1774834240363,-8161.76022464,9.284e-05,2]
[419073104,1774834240376,-4324.26266267,9.284e-05,2]
[419073105,1774834240389,-69434.74552177,9.284e-05,2]
[419073106,1774834240401,-446.13545853,9.284e-05,2]
[419073107,1774834240414,-1142.95991202,9.284e-05,2]
[419073127,1774834240715,-298.58368453,9.283e-05,2]
[419073130,1774834240726,-20.42672843,9.283e-05,2]
[419073132,1774834240736,-3890.89536957,9.284e-05,2]
[419073151,1774834240907,-1360069.68950895,9.284e-05,2]
[419073153,1774834240917,-1163.2107,9.284e-05,2]
[419073155,1774834240927,-433.19377244,9.285e-05,2]
[419073157,1774834240936,-1000.0,9.288e-05,2]
[419073159,1774834240945,-372.0,9.302e-05,2]
[419073161,1774834240955,-514.0,9.459e-05,2]
[419073163,1774834240964,-1083.0,9.478e-05,2]
[419073165,1774834240975,-267.0,9.496e-05,2]
[419073167,1774834240985,-165.0,9.515e-05,2]
[419073169,1774834240995,-1200.0,9.563e-05,2]
[419073171,1774834241005,-150.0,9.6e-05,2]
[419073173,1774834241014,-150.99,9.67e-05,2]
[419073175,1774834241023,-299.99,9.67e-05,2]
[419073177,1774834241033,-9999.99,9.67e-05,2]
[419073179,1774834241042,-9999.99,9.67e-05,2]
[419073181,1774834241051,-1030.97,9.67e-05,2]
[419073183,1774834241061,-4933.99,9.67e-05,2]
[419073185,1774834241070,-1050.0,9.711e-05,2]
[419073187,1774834241079,-150.0,9.726e-05,2]
[419073189,1774834241088,-150.0,9.726e-05,2]
[419073190,1774834241097,-150.0,9.726e-05,2]
[419073191,1774834241107,-196.32670392,9.726e-05,2]
[419073192,1774834241116,-1600.0,9.761e-05,2]
[419073193,1774834241125,-1000.0,9.811e-05,2]
[419073194,1774834241135,-800.0,9.974e-05,2]
[419073195,1774834241144,-500.0,9.975e-05,2]
[419073196,1774834241154,-271.70328557,0.0001,2]
[419073197,1774834241164,-466.61605082,0.0001,2]
[419073198,1774834241173,-208.96,0.0001,2]
[419073199,1774834241183,-753.89050253,0.0001,2]
[419073200,1774834241193,-500.0,0.0001,2]
[419073202,1774834241202,-500.0,0.0001,2]
[419073204,1774834241213,-500.0,0.0001,2]
[419073206,1774834241222,-500.0,0.0001,2]
[419073208,1774834241231,-500.0,0.0001,2]
[419073210,1774834241241,-500.0,0.0001,2]
[419073212,1774834241251,-500.0,0.0001,2]
[419073214,1774834241261,-500.0,0.0001,2]
[419073215,1774834241270,-500.0,0.0001,2]
[419073217,1774834241279,-500.0,0.0001,2]
[419073219,1774834241288,-500.0,0.0001,2]
[419073221,1774834241298,-200.0,0.0001,2]
[419073223,1774834241307,-151.0,0.0001,2]
[419073225,1774834241317,-151.0,0.0001,2]
[419073227,1774834241326,-151.0,0.0001,2]
[419073229,1774834241335,-151.0,0.0001,2]
[419073231,1774834241345,-200.40403933,0.0001,2]
[419073233,1774834241354,-151.0,0.0001,2]
[419073235,1774834241363,-151.0,0.0001,2]
[419073237,1774834241372,-176.03287796,0.0001,2]
[419073239,1774834241382,-151.0,0.0001,2]
[419073241,1774834241391,-151.0,0.0001,2]
[419073243,1774834241400,-151.0,0.0001,2]
[419073245,1774834241410,-151.0,0.0001,2]
[419073248,1774834241420,-151.0,0.0001,2]
[419073250,1774834241431,-151.0,0.0001,2]
[419073251,1774834241441,-500.0,0.0001,2]
[419073253,1774834241452,-500.0,0.0001,2]
[419073255,1774834241462,-500.0,0.0001,2]
[419073257,1774834241471,-500.0,0.0001,2]
[419073259,1774834241481,-500.0,0.0001,2]
[419073261,1774834241491,-151.0,0.0001,2]
[419073263,1774834241500,-500.0,0.0001,2]
[419073266,1774834241511,-500.0,0.0001,2]
[419073267,1774834241520,-500.0,0.0001,2]
[419073269,1774834241529,-500.0,0.0001,2]
[419073271,1774834241539,-500.0,0.0001,2]
[419073273,1774834241547,-500.0,0.0001,2]
[419073275,1774834241558,-1438.09495884,0.0001,2]
[419073277,1774834241567,-218.64346577,0.0001,2]
[419073278,1774834241576,-154.26142952,0.0001,2]
[419073279,1774834241586,-157.0,0.00010058,3]
[419073280,1774834241595,-5000.0,0.00010062,2]
[419073281,1774834241605,-250.0,0.00010062,2]
[419073282,1774834241614,-1680.0,0.00010062,2]
[419073283,1774834241624,-255.0,0.0001021,2]
[419073284,1774834241633,-413.48,0.00010231,2]
[419073285,1774834241642,-500.0,0.00010248,2]
[419073286,1774834241652,-208.96,0.00010274,2]
[419073287,1774834241661,-395.13960355,0.00010358,2]
[419073288,1774834241670,-500.0,0.00010522,2]
[419073289,1774834241681,-208.96,0.00010548,2]
[419073291,1774834241690,-200.0,0.00010548,2]
[419073293,1774834241699,-151.0,0.00010548,2]
[419073295,1774834241709,-250.0,0.00010661,2]
[419073297,1774834241718,-261.56,0.00010741,2]
[419073299,1774834241728,-151.0,0.00010759,2]
[419073301,1774834241738,-151.0,0.00010777,2]
[419073303,1774834241748,-413.42635728,0.00010796,2]
[419073305,1774834241758,-1600.0,0.00010845,2]
[419073307,1774834241767,-500.0,0.00010959,2]
[419073309,1774834241776,-150.0,0.00010959,2]
[419073311,1774834241786,-168.31887754,0.00010959,2]
[419073313,1774834241795,-196.833,0.00011,2]
[419073314,1774834241805,-157.0,0.00011054,3]
[419073316,1774834241816,-2351.0,0.00011068,2]
[419073318,1774834241825,-200.0,0.00011096,2]
[419073320,1774834241835,-4078.83721191,0.00011099,2]
[419073322,1774834241844,-4078.83721184,0.00011099,2]
[419073324,1774834241853,-4078.83721184,0.00011099,2]
[419073326,1774834241863,-309.95,0.00011189,2]
[419073328,1774834241873,-433.0,0.00011231,2]
[419073330,1774834241882,-4078.83721184,0.00011408,2]
[419073332,1774834241892,-200.0,0.00011644,2]
[419073334,1774834241901,-1600.0,0.0001193,2]
[419073335,1774834241910,-157.0,0.00012049,3]
[419073336,1774834241919,-4078.83721184,0.00012157,2]
[419073337,1774834241929,-3292.0,0.00012175,2]
[419073338,1774834241939,-200.0,0.00012192,2]
[419073339,1774834241948,-736.0,0.00012354,2]
[419073340,1774834241958,-258.2883,0.000124,2]
[419073341,1774834241967,-578.20924308,0.00012418,2]
[419073342,1774834241977,-717.60346743,0.00012418,2]
[419073343,1774834241986,-151.0,0.00012418,2]
[419073344,1774834241998,-209.40437684,0.00012418,2]
[419073345,1774834242007,-500.0,0.00012418,2]
[419073346,1774834242016,-500.0,0.00012418,2]
[419073347,1774834242026,-1428.38747117,0.00012418,2]
[419073348,1774834242035,-500.0,0.00012418,2]
[419073349,1774834242044,-500.0,0.00012418,2]
[419073350,1774834242054,-500.0,0.00012418,2]
[419073351,1774834242063,-500.0,0.00012418,2]
[419073352,1774834242073,-500.0,0.00012418,2]
[419073353,1774834242084,-500.0,0.00012418,2]
[419073354,1774834242094,-500.0,0.00012418,2]
[419073355,1774834242104,-500.0,0.00012418,2]
[419073356,1774834242113,-500.0,0.00012418,2]
[419073357,1774834242122,-500.0,0.00012418,2]
[419073358,1774834242132,-500.0,0.00012418,2]
[419073359,1774834242141,-500.0,0.00012418,2]
[419073360,1774834242151,-209.40437684,0.00012418,2]
[419073361,1774834242160,-500.0,0.00012418,2]
[419073362,1774834242170,-500.0,0.00012418,2]
[419073363,1774834242179,-500.0,0.00012418,2]
[419073364,1774834242188,-500.0,0.00012418,2]
[419073365,1774834242198,-500.0,0.00012418,2]
[419073366,1774834242207,-500.0,0.00012418,2]
[419073367,1774834242216,-500.0,0.00012418,2]
[419073368,1774834242226,-500.0,0.00012418,2]
[419073369,1774834242235,-500.0,0.00012418,2]
[419073370,1774834242244,-500.0,0.00012418,2]
[419073371,1774834242254,-9552.16786547,0.00012418,2]
[419073372,1774834242263,-500.0,0.00012418,2]
[419073373,1774834242272,-500.0,0.00012418,2]
[419073374,1774834242282,-500.0,0.00012418,2]
[419073375,1774834242291,-500.0,0.00012418,2]
[419073376,1774834242302,-500.0,0.00012418,2]
[419073377,1774834242311,-500.0,0.00012418,2]
[419073378,1774834242320,-174.61919141,0.00012418,2]
[419073379,1774834242330,-500.0,0.00012418,2]
[419073380,1774834242339,-500.0,0.00012418,2]
[419073381,1774834242350,-500.0,0.00012418,2]
[419073382,1774834242360,-500.0,0.00012418,2]
[419073383,1774834242370,-250.0,0.00012418,2]
[419073384,1774834242380,-250.0,0.00012418,2]
[419073385,1774834242390,-200.0,0.00012418,2]
[419073386,1774834242400,-250.0,0.00012418,2]
[419073387,1774834242409,-250.0,0.00012418,2]
[419073388,1774834242418,-250.0,0.00012418,2]
[419073389,1774834242428,-693.3919763,0.00012418,2]
[419073390,1774834242437,-250.0,0.00012418,2]
[419073391,1774834242446,-250.0,0.00012418,2]
[419073392,1774834242455,-250.0,0.00012418,2]
[419073393,1774834242464,-151.0,0.00012418,2]
[419073394,1774834242473,-250.0,0.00012418,2]
[419073395,1774834242482,-250.0,0.00012418,2]
[419073396,1774834242491,-250.0,0.00012418,2]
[419073397,1774834242501,-279.9045709,0.00012418,2]
[419073398,1774834242511,-743.50770149,0.00012418,2]
[419073399,1774834242520,-262.90206542,0.00012418,2]
[419073400,1774834242529,-209.40437684,0.00012418,2]
[419073401,1774834242538,-500.0,0.00012418,2]
[419073402,1774834242547,-500.0,0.00012418,2]